[Event "Titled Tuesday Blitz May 10 Late 2022"]
[White "Pranav, V"]
[Black "Urbina Perez, Juan Antonio"]
[WhiteFideId "25060783"]
[BlackFideId "2217368"]
[WhiteElo "2349"]
[BlackElo "2192"]
[Result "1/2-1/2"]
[Round "03"]
[TimeControl "180+1"]
[Date "2022.05.11"]
[WhiteClock "0:00:07"]
[BlackClock "0:00:06"]

1. e4 {[%clk 0:03:00]}  c5 {[%clk 0:02:56]} 2. Nf3 {[%clk 0:02:55]}  d6 {[%clk 0:02:57]} 3. Bb5+ {[%clk 0:02:54]}  Bd7 {[%clk 0:02:56]} 4. Bxd7+ {[%clk 0:02:50]}  Nxd7 {[%clk 0:02:57]} 5. O-O {[%clk 0:02:49]}  Ngf6 {[%clk 0:02:58]} 6. Re1 {[%clk 0:02:48]}  e6 {[%clk 0:02:58]} 7. c3 {[%clk 0:02:48]}  Be7 {[%clk 0:02:56]} 8. d4 {[%clk 0:02:48]}  O-O {[%clk 0:02:54]} 9. e5 {[%clk 0:02:47]}  Ne8 {[%clk 0:02:54]} 10. Nbd2 {[%clk 0:02:45]}  cxd4 {[%clk 0:02:52]} 11. cxd4 {[%clk 0:02:46]}  dxe5 {[%clk 0:02:53]} 12. dxe5 {[%clk 0:02:47]}  Nc7 {[%clk 0:02:53]} 13. Ne4 {[%clk 0:02:46]}  Nd5 {[%clk 0:02:51]} 14. a3 {[%clk 0:02:44]}  Nc5 {[%clk 0:02:49]} 15. Nxc5 {[%clk 0:02:43]}  Bxc5 {[%clk 0:02:50]} 16. Qe2 {[%clk 0:02:43]}  Rc8 {[%clk 0:02:46]} 17. Qe4 {[%clk 0:02:36]}  Be7 {[%clk 0:02:41]} 18. Bd2 {[%clk 0:02:31]}  Qc7 {[%clk 0:02:39]} 19. Rac1 {[%clk 0:02:18]}  Qb6 {[%clk 0:02:39]} 20. b4 {[%clk 0:02:11]}  Rfd8 {[%clk 0:02:22]} 21. h4 {[%clk 0:02:10]}  Rc7 {[%clk 0:02:01]} 22. Bg5 {[%clk 0:01:57]}  Rxc1 {[%clk 0:01:53]} 23. Rxc1 {[%clk 0:01:56]}  h6 {[%clk 0:01:51]} 24. Bd2 {[%clk 0:01:52]}  Rd7 {[%clk 0:01:44]} 25. Qg4 {[%clk 0:01:51]}  Kf8 {[%clk 0:01:40]} 26. Qe4 {[%clk 0:01:49]}  Kg8 {[%clk 0:01:36]} 27. Qg4 {[%clk 0:01:48]}  Kf8 {[%clk 0:01:35]} 28. Qh5 {[%clk 0:01:49]}  Rc7 {[%clk 0:01:30]} 29. Re1 {[%clk 0:01:42]}  Rc2 {[%clk 0:01:09]} 30. Qg4 {[%clk 0:01:41]}  Qc7 {[%clk 0:01:01]} 31. Qe4 {[%clk 0:01:40]}  Kg8 {[%clk 0:00:57]} 32. Qg4 {[%clk 0:01:30]}  Kf8 {[%clk 0:00:51]} 33. g3 {[%clk 0:01:09]}  Qc4 {[%clk 0:00:50]} 34. Qh5 {[%clk 0:01:00]}  Qd3 {[%clk 0:00:37]} 35. Bc1 {[%clk 0:00:57]}  Qc3 {[%clk 0:00:30]} 36. Bxh6 {[%clk 0:00:53]}  gxh6 {[%clk 0:00:29]} 37. Qxh6+ {[%clk 0:00:54]}  Ke8 {[%clk 0:00:29]} 38. Qh5 {[%clk 0:00:49]}  Rc1 {[%clk 0:00:24]} 39. Rxc1 {[%clk 0:00:46]}  Qxc1+ {[%clk 0:00:25]} 40. Kg2 {[%clk 0:00:47]}  Qc4 {[%clk 0:00:22]} 41. Qh8+ {[%clk 0:00:47]}  Kd7 {[%clk 0:00:22]} 42. Qg8 {[%clk 0:00:47]}  f5 {[%clk 0:00:18]} 43. exf6 {[%clk 0:00:42]}  Nxf6 {[%clk 0:00:19]} 44. Qf7 {[%clk 0:00:30]}  Qe4 {[%clk 0:00:18]} 45. h5 {[%clk 0:00:26]}  Ng4 {[%clk 0:00:17]} 46. Qg7 {[%clk 0:00:21]}  Kd6 {[%clk 0:00:15]} 47. h6 {[%clk 0:00:16]}  Ne5 {[%clk 0:00:15]} 48. h7 {[%clk 0:00:10]}  Qxf3+ {[%clk 0:00:14]} 49. Kg1 {[%clk 0:00:10]}  Qd1+ {[%clk 0:00:14]} 50. Kg2 {[%clk 0:00:10]}  Qf3+ {[%clk 0:00:13]} 51. Kg1 {[%clk 0:00:11]}  Qd1+ {[%clk 0:00:11]} 52. Kg2 {[%clk 0:00:09]}  Qd5+ {[%clk 0:00:10]} 53. Kg1 {[%clk 0:00:07]}  Nf3+ {[%clk 0:00:10]} 54. Kf1 {[%clk 0:00:07]}  Nd2+ {[%clk 0:00:06]} 55. Kg1 {[%clk 0:00:07]}  Nf3+ {[%clk 0:00:05]} 56. Kf1 {[%clk 0:00:07]}  Nd2+ {[%clk 0:00:06]} 57. Kg1 {[%clk 0:00:07]}  Nf3+ {[%clk 0:00:06]} 1/2-1/2


[Site "https://www.chess.com"]

[Event "Titled Tuesday Blitz May 10 Late 2022"]
[White "Romanchuk, Viktor"]
[Black "Diaz, Fernando"]
[WhiteFideId "14109271"]
[BlackFideId "3701255"]
[WhiteElo "2242"]
[BlackElo "1934"]
[Result "0-1"]
[Round "03"]
[TimeControl "180+1"]
[Date "2022.05.11"]
[WhiteClock "0:00:18"]
[BlackClock "0:01:09"]

1. d4 {[%clk 0:03:00]}  e5 {[%clk 0:02:59]} 2. dxe5 {[%clk 0:03:00]}  d6 {[%clk 0:02:59]} 3. Nf3 {[%clk 0:02:58]}  Nc6 {[%clk 0:02:59]} 4. exd6 {[%clk 0:02:57]}  Bxd6 {[%clk 0:02:48]} 5. c3 {[%clk 0:02:55]}  Bg4 {[%clk 0:02:48]} 6. Nbd2 {[%clk 0:02:53]}  Qe7 {[%clk 0:02:48]} 7. Nc4 {[%clk 0:02:52]}  Bc5 {[%clk 0:02:46]} 8. Be3 {[%clk 0:02:51]}  Rd8 {[%clk 0:02:40]} 9. Qa4 {[%clk 0:02:47]}  Nf6 {[%clk 0:02:38]} 10. Bxc5 {[%clk 0:01:53]}  Qxc5 {[%clk 0:02:39]} 11. e3 {[%clk 0:01:53]}  b5 {[%clk 0:02:21]} 12. b4 {[%clk 0:01:43]}  Qd5 {[%clk 0:02:13]} 13. Qxb5 {[%clk 0:01:32]}  Qxb5 {[%clk 0:02:09]} 14. Nd6+ {[%clk 0:01:32]}  Rxd6 {[%clk 0:02:10]} 15. Bxb5 {[%clk 0:01:32]}  O-O {[%clk 0:02:10]} 16. Nd4 {[%clk 0:01:24]}  Nxd4 {[%clk 0:02:06]} 17. cxd4 {[%clk 0:01:22]}  Rb6 {[%clk 0:02:06]} 18. Bd3 {[%clk 0:01:13]}  Rxb4 {[%clk 0:02:05]} 19. O-O {[%clk 0:01:13]}  Rb2 {[%clk 0:02:00]} 20. Rfc1 {[%clk 0:01:07]}  Rfb8 {[%clk 0:01:55]} 21. h3 {[%clk 0:00:50]}  Be2 {[%clk 0:01:40]} 22. Bxe2 {[%clk 0:00:39]}  Rxe2 {[%clk 0:01:41]} 23. Rxc7 {[%clk 0:00:40]}  h5 {[%clk 0:01:32]} 24. Rxa7 {[%clk 0:00:35]}  Rbb2 {[%clk 0:01:32]} 25. Rf1 {[%clk 0:00:33]}  Ne4 {[%clk 0:01:30]} 26. Ra5 {[%clk 0:00:18]}  Ng3 {[%clk 0:01:09]} 0-1


[Site "https://www.chess.com"]

[Event "Titled Tuesday Blitz May 10 Late 2022"]
[White "Rustemov, Alexander"]
[Black "Bluebaum, Matthias"]
[WhiteFideId "4119002"]
[BlackFideId "24651516"]
[WhiteElo "2735"]
[BlackElo "2556"]
[Result "1/2-1/2"]
[Round "03"]
[TimeControl "180+1"]
[Date "2022.05.10"]
[WhiteClock "0:00:12"]
[BlackClock "0:00:06"]

1. d4 {[%clk 0:03:00]}  Nf6 {[%clk 0:03:00]} 2. c4 {[%clk 0:02:59]}  e6 {[%clk 0:02:59]} 3. Nf3 {[%clk 0:02:59]}  d5 {[%clk 0:03:00]} 4. Nc3 {[%clk 0:02:58]}  Bb4 {[%clk 0:03:00]} 5. Bg5 {[%clk 0:02:57]}  h6 {[%clk 0:02:56]} 6. Bxf6 {[%clk 0:02:57]}  Qxf6 {[%clk 0:02:57]} 7. e3 {[%clk 0:02:57]}  O-O {[%clk 0:02:57]} 8. Qb3 {[%clk 0:02:58]}  c5 {[%clk 0:02:57]} 9. cxd5 {[%clk 0:02:58]}  exd5 {[%clk 0:02:58]} 10. dxc5 {[%clk 0:02:59]}  Bxc3+ {[%clk 0:02:59]} 11. Qxc3 {[%clk 0:03:00]}  Qxc3+ {[%clk 0:02:59]} 12. bxc3 {[%clk 0:03:00]}  Be6 {[%clk 0:03:00]} 13. Nd4 {[%clk 0:02:50]}  Rc8 {[%clk 0:03:00]} 14. Nb3 {[%clk 0:02:37]}  Nd7 {[%clk 0:02:58]} 15. Kd2 {[%clk 0:02:36]}  Nxc5 {[%clk 0:02:48]} 16. Nxc5 {[%clk 0:02:37]}  Rxc5 {[%clk 0:02:49]} 17. Bd3 {[%clk 0:02:37]}  Rac8 {[%clk 0:02:49]} 18. Rhc1 {[%clk 0:02:36]}  b6 {[%clk 0:02:49]} 19. a4 {[%clk 0:02:33]}  Kf8 {[%clk 0:02:48]} 20. Ra3 {[%clk 0:02:30]}  Bd7 {[%clk 0:02:48]} 21. Rb1 {[%clk 0:02:26]}  Ra5 {[%clk 0:02:44]} 22. Bb5 {[%clk 0:02:12]}  Ke7 {[%clk 0:02:34]} 23. Bxd7 {[%clk 0:02:10]}  Kxd7 {[%clk 0:02:35]} 24. Rb5 {[%clk 0:02:10]}  Rc5 {[%clk 0:02:32]} 25. Rb4 {[%clk 0:02:10]}  Kc6 {[%clk 0:02:23]} 26. Kd3 {[%clk 0:02:09]}  Kd6 {[%clk 0:02:15]} 27. h4 {[%clk 0:02:08]}  b5 {[%clk 0:01:39]} 28. h5 {[%clk 0:02:03]}  a6 {[%clk 0:01:38]} 29. Rg4 {[%clk 0:02:02]}  Rc4 {[%clk 0:01:17]} 30. Rxg7 {[%clk 0:02:02]}  Rcxa4 {[%clk 0:01:07]} 31. Rb3 {[%clk 0:01:56]}  Ke6 {[%clk 0:00:57]} 32. Rb2 {[%clk 0:01:50]}  Ra2 {[%clk 0:00:56]} 33. Kc2 {[%clk 0:01:49]}  Ra1 {[%clk 0:00:54]} 34. Rh7 {[%clk 0:01:48]}  Rf1 {[%clk 0:00:48]} 35. Rxh6+ {[%clk 0:01:47]}  f6 {[%clk 0:00:48]} 36. Kd3 {[%clk 0:01:46]}  Ra4 {[%clk 0:00:46]} 37. Rh8 {[%clk 0:01:27]}  Rh1 {[%clk 0:00:46]} 38. g3 {[%clk 0:01:25]}  Kf7 {[%clk 0:00:46]} 39. Ke2 {[%clk 0:01:21]}  Kg7 {[%clk 0:00:44]} 40. Rd8 {[%clk 0:01:13]}  Rxh5 {[%clk 0:00:44]} 41. Rd2 {[%clk 0:01:06]}  Rc4 {[%clk 0:00:41]} 42. Rd3 {[%clk 0:01:04]}  Rc5 {[%clk 0:00:28]} 43. Ra8 {[%clk 0:01:01]}  Rc6 {[%clk 0:00:28]} 44. Rd8 {[%clk 0:00:55]}  Kf7 {[%clk 0:00:29]} 45. g4 {[%clk 0:00:52]}  Rg5 {[%clk 0:00:25]} 46. Kf3 {[%clk 0:00:46]}  Ke7 {[%clk 0:00:26]} 47. Ra8 {[%clk 0:00:46]}  f5 {[%clk 0:00:22]} 48. gxf5 {[%clk 0:00:43]}  Rxf5+ {[%clk 0:00:23]} 49. Ke2 {[%clk 0:00:43]}  Kd6 {[%clk 0:00:22]} 50. e4 {[%clk 0:00:39]}  Re5 {[%clk 0:00:22]} 51. Rxd5+ {[%clk 0:00:38]}  Rxd5 {[%clk 0:00:23]} 52. exd5 {[%clk 0:00:38]}  Kxd5 {[%clk 0:00:22]} 53. Kd3 {[%clk 0:00:39]}  Rf6 {[%clk 0:00:21]} 54. f4 {[%clk 0:00:36]}  Kc5 {[%clk 0:00:20]} 55. Ke4 {[%clk 0:00:33]}  Re6+ {[%clk 0:00:20]} 56. Kd3 {[%clk 0:00:32]}  Rf6 {[%clk 0:00:14]} 57. Ke4 {[%clk 0:00:32]}  Re6+ {[%clk 0:00:14]} 58. Kd3 {[%clk 0:00:32]}  Kb6 {[%clk 0:00:12]} 59. f5 {[%clk 0:00:30]}  Re5 {[%clk 0:00:11]} 60. Rf8 {[%clk 0:00:28]}  a5 {[%clk 0:00:12]} 61. f6 {[%clk 0:00:28]}  Rf5 {[%clk 0:00:12]} 62. Ke4 {[%clk 0:00:28]}  Rf1 {[%clk 0:00:12]} 63. f7 {[%clk 0:00:25]}  Kb7 {[%clk 0:00:12]} 64. Ke5 {[%clk 0:00:26]}  a4 {[%clk 0:00:12]} 65. Ke6 {[%clk 0:00:25]}  a3 {[%clk 0:00:12]} 66. Rd8 {[%clk 0:00:17]}  a2 {[%clk 0:00:12]} 67. Rd7+ {[%clk 0:00:17]}  Kb6 {[%clk 0:00:12]} 68. Rd6+ {[%clk 0:00:17]}  Kb7 {[%clk 0:00:07]} 69. Rd7+ {[%clk 0:00:17]}  Kb6 {[%clk 0:00:05]} 70. Rd6+ {[%clk 0:00:17]}  Ka5 {[%clk 0:00:04]} 71. Rd8 {[%clk 0:00:17]}  Ka4 {[%clk 0:00:05]} 72. Ra8+ {[%clk 0:00:12]}  Kb3 {[%clk 0:00:06]} 73. Ra5 {[%clk 0:00:11]}  Kb2 {[%clk 0:00:03]} 74. Rxb5+ {[%clk 0:00:11]}  Kxc3 {[%clk 0:00:03]} 75. Ra5 {[%clk 0:00:12]}  Kb2 {[%clk 0:00:04]} 76. Rxa2+ {[%clk 0:00:11]}  Kxa2 {[%clk 0:00:04]} 77. Ke7 {[%clk 0:00:12]}  Kb3 {[%clk 0:00:05]} 78. f8=Q {[%clk 0:00:11]}  Rxf8 {[%clk 0:00:06]} 79. Kxf8 {[%clk 0:00:12]} 1/2-1/2


[Site "https://www.chess.com"]

[Event "Titled Tuesday Blitz May 10 Late 2022"]
[White "Sargsyan, Anna M."]
[Black "Suleymanli, Aydin"]
[WhiteFideId "13308130"]
[BlackFideId "13413937"]
[WhiteElo "2271"]
[BlackElo "2481"]
[Result "0-1"]
[Round "03"]
[TimeControl "180+1"]
[Date "2022.05.10"]
[WhiteClock "0:00:09"]
[BlackClock "0:01:42"]

1. d4 {[%clk 0:03:00]}  d5 {[%clk 0:03:00]} 2. c4 {[%clk 0:03:01]}  e6 {[%clk 0:03:00]} 3. Nf3 {[%clk 0:03:01]}  Nf6 {[%clk 0:02:59]} 4. Nc3 {[%clk 0:03:02]}  Bb4 {[%clk 0:02:53]} 5. Bg5 {[%clk 0:02:57]}  dxc4 {[%clk 0:02:49]} 6. e4 {[%clk 0:02:56]}  c5 {[%clk 0:02:44]} 7. Bxc4 {[%clk 0:02:27]}  cxd4 {[%clk 0:02:42]} 8. Qa4+ {[%clk 0:02:22]}  Nc6 {[%clk 0:02:36]} 9. O-O-O {[%clk 0:02:22]}  Qb6 {[%clk 0:02:29]} 10. Nxd4 {[%clk 0:02:00]}  Bd7 {[%clk 0:02:28]} 11. Bxf6 {[%clk 0:01:09]}  gxf6 {[%clk 0:02:24]} 12. Ndb5 {[%clk 0:00:58]}  O-O-O {[%clk 0:02:02]} 13. a3 {[%clk 0:00:25]}  Bxc3 {[%clk 0:01:57]} 14. Nxc3 {[%clk 0:00:26]}  Ne5 {[%clk 0:01:53]} 15. Bb5 {[%clk 0:00:25]}  Bxb5 {[%clk 0:01:53]} 16. Nxb5 {[%clk 0:00:21]}  Kb8 {[%clk 0:01:50]} 17. f3 {[%clk 0:00:15]}  Nd3+ {[%clk 0:01:43]} 18. Kc2 {[%clk 0:00:08]}  Qf2+ {[%clk 0:01:42]} 19. Rd2 {[%clk 0:00:09]}  Ne1+ {[%clk 0:01:42]} 0-1


[Site "https://www.chess.com"]

[Event "Titled Tuesday Blitz May 10 Late 2022"]
[White "Shimanov, Aleksandr"]
[Black "Girsh, Daniel"]
[WhiteFideId "4198603"]
[BlackFideId "30949190"]
[WhiteElo "2605"]
[BlackElo "2465"]
[Result "1-0"]
[Round "03"]
[TimeControl "180+1"]
[Date "2022.05.10"]
[WhiteClock "0:00:24"]
[BlackClock "0:00:01"]

1. d4 {[%clk 0:03:00]}  Nf6 {[%clk 0:02:59]} 2. Nc3 {[%clk 0:02:56]}  d5 {[%clk 0:02:59]} 3. Bf4 {[%clk 0:02:56]}  e6 {[%clk 0:02:58]} 4. Nb5 {[%clk 0:02:55]}  Na6 {[%clk 0:02:59]} 5. e3 {[%clk 0:02:54]}  Be7 {[%clk 0:02:59]} 6. Nf3 {[%clk 0:02:54]}  O-O {[%clk 0:03:00]} 7. Ne5 {[%clk 0:02:53]}  c6 {[%clk 0:02:55]} 8. Nc3 {[%clk 0:02:52]}  Nb8 {[%clk 0:02:56]} 9. g4 {[%clk 0:02:45]}  c5 {[%clk 0:02:56]} 10. g5 {[%clk 0:02:29]}  Nfd7 {[%clk 0:02:56]} 11. h4 {[%clk 0:02:29]}  Nc6 {[%clk 0:02:55]} 12. Nf3 {[%clk 0:02:09]}  Qb6 {[%clk 0:02:45]} 13. a3 {[%clk 0:01:44]}  cxd4 {[%clk 0:02:31]} 14. exd4 {[%clk 0:01:44]}  f6 {[%clk 0:02:25]} 15. Bd3 {[%clk 0:01:31]}  e5 {[%clk 0:02:15]} 16. Bd2 {[%clk 0:01:24]}  exd4 {[%clk 0:01:27]} 17. Nxd5 {[%clk 0:01:22]}  Qc5 {[%clk 0:01:27]} 18. Qe2 {[%clk 0:01:16]}  Nde5 {[%clk 0:01:18]} 19. Nxe5 {[%clk 0:01:11]}  Nxe5 {[%clk 0:01:13]} 20. Qe4 {[%clk 0:00:44]}  Nxd3+ {[%clk 0:00:28]} 21. cxd3 {[%clk 0:00:43]}  Bd6 {[%clk 0:00:16]} 22. Bb4 {[%clk 0:00:38]}  Qc6 {[%clk 0:00:15]} 23. gxf6 {[%clk 0:00:29]}  Re8 {[%clk 0:00:11]} 24. Ne7+ {[%clk 0:00:28]}  Bxe7 {[%clk 0:00:10]} 25. fxe7 {[%clk 0:00:28]}  Qxe4+ {[%clk 0:00:08]} 26. dxe4 {[%clk 0:00:29]}  a5 {[%clk 0:00:08]} 27. Bd6 {[%clk 0:00:29]}  Ra6 {[%clk 0:00:08]} 28. e5 {[%clk 0:00:29]}  Bf5 {[%clk 0:00:06]} 29. Rc1 {[%clk 0:00:27]}  Rc6 {[%clk 0:00:05]} 30. Rxc6 {[%clk 0:00:26]}  bxc6 {[%clk 0:00:06]} 31. Kd2 {[%clk 0:00:27]}  Kf7 {[%clk 0:00:04]} 32. Rc1 {[%clk 0:00:27]}  Be4 {[%clk 0:00:05]} 33. Rc4 {[%clk 0:00:26]}  Ke6 {[%clk 0:00:02]} 34. Rxd4 {[%clk 0:00:27]}  Bd5 {[%clk 0:00:03]} 35. Ra4 {[%clk 0:00:27]}  Ra8 {[%clk 0:00:01]} 36. Rxa5 {[%clk 0:00:26]}  Rc8 {[%clk 0:00:01]} 37. Ra7 {[%clk 0:00:24]}  Kf7 {[%clk 0:00:02]} 38. Rd7 {[%clk 0:00:24]}  Ke8 {[%clk 0:00:02]} 39. Rb7 {[%clk 0:00:24]}  c5 {[%clk 0:00:01]} 40. Rb5 {[%clk 0:00:24]} 1-0


[Site "https://www.chess.com"]

[Event "Titled Tuesday Blitz May 10 Late 2022"]
[White "Song, Guannan Terry"]
[Black "Wartiovaara, Oliver"]
[WhiteFideId "2614189"]
[BlackFideId "513024"]
[WhiteElo "2115"]
[BlackElo "1971"]
[Result "1-0"]
[Round "03"]
[TimeControl "180+1"]
[Date "2022.05.11"]
[WhiteClock "0:02:31"]
[BlackClock "0:01:25"]

1. d4 {[%clk 0:03:00]}  Nf6 {[%clk 0:02:56]} 2. Bg5 {[%clk 0:03:01]}  e6 {[%clk 0:02:53]} 3. e4 {[%clk 0:03:00]}  c5 {[%clk 0:02:53]} 4. Nf3 {[%clk 0:02:55]}  cxd4 {[%clk 0:02:44]} 5. Nxd4 {[%clk 0:02:55]}  Be7 {[%clk 0:02:21]} 6. Nc3 {[%clk 0:02:49]}  O-O {[%clk 0:02:20]} 7. e5 {[%clk 0:02:47]}  Ne8 {[%clk 0:02:18]} 8. h4 {[%clk 0:02:46]}  h6 {[%clk 0:02:07]} 9. Bd3 {[%clk 0:02:38]}  hxg5 {[%clk 0:01:31]} 10. Bh7+ {[%clk 0:02:37]}  Kh8 {[%clk 0:01:25]} 11. Qh5 {[%clk 0:02:31]} 1-0


[Site "https://www.chess.com"]

[Event "Titled Tuesday Blitz May 10 Late 2022"]
[White "Srinath, Rao S.V."]
[Black "Adewumi, Tanitoluwa"]
[WhiteFideId "5028876"]
[BlackFideId "30966396"]
[WhiteElo "2181"]
[BlackElo "2513"]
[Result "1-0"]
[Round "03"]
[TimeControl "180+1"]
[Date "2022.05.11"]
[WhiteClock "0:01:14"]
[BlackClock "0:00:09"]

1. e4 {[%clk 0:02:53]}  c5 {[%clk 0:02:58]} 2. Nf3 {[%clk 0:02:48]}  e6 {[%clk 0:02:57]} 3. c3 {[%clk 0:02:48]}  Nf6 {[%clk 0:02:55]} 4. e5 {[%clk 0:02:48]}  Nd5 {[%clk 0:02:55]} 5. d4 {[%clk 0:02:48]}  cxd4 {[%clk 0:02:55]} 6. cxd4 {[%clk 0:02:49]}  d6 {[%clk 0:02:55]} 7. Bc4 {[%clk 0:02:49]}  Nb6 {[%clk 0:02:55]} 8. Bb3 {[%clk 0:02:44]}  Nc6 {[%clk 0:02:55]} 9. exd6 {[%clk 0:02:41]}  Bxd6 {[%clk 0:02:54]} 10. O-O {[%clk 0:02:41]}  O-O {[%clk 0:02:53]} 11. Nc3 {[%clk 0:02:41]}  h6 {[%clk 0:02:47]} 12. a3 {[%clk 0:02:36]}  Bd7 {[%clk 0:02:41]} 13. Qd3 {[%clk 0:02:35]}  Ne7 {[%clk 0:02:29]} 14. Bc2 {[%clk 0:02:28]}  f5 {[%clk 0:02:15]} 15. Re1 {[%clk 0:02:21]}  Ned5 {[%clk 0:02:12]} 16. Ne5 {[%clk 0:02:18]}  Rc8 {[%clk 0:02:06]} 17. Bb3 {[%clk 0:02:11]}  a6 {[%clk 0:01:56]} 18. Nxd5 {[%clk 0:01:59]}  exd5 {[%clk 0:01:44]} 19. Bf4 {[%clk 0:01:55]}  Bb5 {[%clk 0:01:42]} 20. Qf3 {[%clk 0:01:50]}  Bxe5 {[%clk 0:01:34]} 21. Bxe5 {[%clk 0:01:47]}  Bc4 {[%clk 0:01:34]} 22. Bc2 {[%clk 0:01:42]}  Qd7 {[%clk 0:01:31]} 23. h4 {[%clk 0:01:38]}  Rc6 {[%clk 0:01:28]} 24. Qf4 {[%clk 0:01:36]}  Rg6 {[%clk 0:01:24]} 25. h5 {[%clk 0:01:28]}  Rg4 {[%clk 0:01:22]} 26. Qf3 {[%clk 0:01:27]}  Qf7 {[%clk 0:01:20]} 27. Bd6 {[%clk 0:01:19]}  Rxd4 {[%clk 0:00:41]} 28. Bxf8 {[%clk 0:01:17]}  Qxf8 {[%clk 0:00:29]} 29. Bxf5 {[%clk 0:01:17]}  Qf6 {[%clk 0:00:10]} 30. Re8+ {[%clk 0:01:15]}  Kf7 {[%clk 0:00:09]} 31. Bg6# {[%clk 0:01:14]} 1-0


[Site "https://www.chess.com"]

[Event "Titled Tuesday Blitz May 10 Late 2022"]
[White "Steinberg, Nitzan"]
[Black "Khripachenko, Alexander"]
[WhiteFideId "2801795"]
[BlackFideId "54184975"]
[WhiteElo "2471"]
[BlackElo "2138"]
[Result "0-1"]
[Round "03"]
[TimeControl "180+1"]
[Date "2022.05.10"]
[WhiteClock "0:00:04"]
[BlackClock "0:00:11"]

1. e4 {[%clk 0:03:00]}  c6 {[%clk 0:02:58]} 2. d4 {[%clk 0:03:00]}  d5 {[%clk 0:02:58]} 3. e5 {[%clk 0:03:01]}  Bf5 {[%clk 0:02:58]} 4. Nf3 {[%clk 0:03:01]}  e6 {[%clk 0:02:59]} 5. Be2 {[%clk 0:03:02]}  Nd7 {[%clk 0:02:59]} 6. Be3 {[%clk 0:03:02]}  a6 {[%clk 0:03:00]} 7. O-O {[%clk 0:03:03]}  c5 {[%clk 0:03:00]} 8. c3 {[%clk 0:03:00]}  Rc8 {[%clk 0:02:56]} 9. Ne1 {[%clk 0:02:52]}  Bg6 {[%clk 0:02:56]} 10. Nd2 {[%clk 0:02:48]}  Ne7 {[%clk 0:02:56]} 11. f4 {[%clk 0:02:41]}  cxd4 {[%clk 0:02:52]} 12. cxd4 {[%clk 0:02:41]}  Qb6 {[%clk 0:02:51]} 13. Nb3 {[%clk 0:02:40]}  h5 {[%clk 0:02:48]} 14. Bf2 {[%clk 0:02:36]}  Nf5 {[%clk 0:02:47]} 15. Nd3 {[%clk 0:02:34]}  Be7 {[%clk 0:02:44]} 16. Ndc5 {[%clk 0:02:29]}  Nxc5 {[%clk 0:02:43]} 17. dxc5 {[%clk 0:02:27]}  Qb4 {[%clk 0:02:43]} 18. g3 {[%clk 0:02:15]}  f6 {[%clk 0:01:57]} 19. exf6 {[%clk 0:01:41]}  Bxf6 {[%clk 0:01:54]} 20. Bd3 {[%clk 0:01:41]}  Kf7 {[%clk 0:01:52]} 21. Qe2 {[%clk 0:01:36]}  Rhe8 {[%clk 0:01:35]} 22. Rac1 {[%clk 0:01:31]}  Kg8 {[%clk 0:01:30]} 23. Kh1 {[%clk 0:01:19]}  Kh7 {[%clk 0:01:29]} 24. Rfe1 {[%clk 0:01:12]}  Re7 {[%clk 0:01:26]} 25. Rc2 {[%clk 0:01:11]}  a5 {[%clk 0:01:25]} 26. c6 {[%clk 0:01:03]}  b6 {[%clk 0:01:06]} 27. Nd2 {[%clk 0:01:03]}  Rec7 {[%clk 0:00:57]} 28. Qxe6 {[%clk 0:00:54]}  Nxg3+ {[%clk 0:00:53]} 29. hxg3 {[%clk 0:00:35]}  Bxd3 {[%clk 0:00:54]} 30. Rec1 {[%clk 0:00:27]}  Bxc2 {[%clk 0:00:26]} 31. Rxc2 {[%clk 0:00:28]}  Qb5 {[%clk 0:00:26]} 32. Qf5+ {[%clk 0:00:29]}  Kg8 {[%clk 0:00:26]} 33. Qe6+ {[%clk 0:00:29]}  Kh8 {[%clk 0:00:26]} 34. Nf3 {[%clk 0:00:17]}  Rxc6 {[%clk 0:00:21]} 35. Qxc8+ {[%clk 0:00:17]}  Rxc8 {[%clk 0:00:20]} 36. Rxc8+ {[%clk 0:00:18]}  Kh7 {[%clk 0:00:21]} 37. Kg2 {[%clk 0:00:19]}  Qxb2 {[%clk 0:00:21]} 38. a4 {[%clk 0:00:18]}  b5 {[%clk 0:00:21]} 39. axb5 {[%clk 0:00:13]}  Qxb5 {[%clk 0:00:21]} 40. Rc7 {[%clk 0:00:11]}  a4 {[%clk 0:00:21]} 41. Ra7 {[%clk 0:00:12]}  Qb3 {[%clk 0:00:21]} 42. Nd4 {[%clk 0:00:09]}  Qd3 {[%clk 0:00:21]} 43. Nc6 {[%clk 0:00:07]}  a3 {[%clk 0:00:20]} 44. Ne5 {[%clk 0:00:06]}  Qe4+ {[%clk 0:00:20]} 45. Kh2 {[%clk 0:00:05]}  Bxe5 {[%clk 0:00:20]} 46. fxe5 {[%clk 0:00:06]}  Qc2 {[%clk 0:00:20]} 47. Kg2 {[%clk 0:00:05]}  a2 {[%clk 0:00:21]} 48. e6 {[%clk 0:00:06]}  Kg6 {[%clk 0:00:14]} 49. Ra6 {[%clk 0:00:04]}  Qb2 {[%clk 0:00:12]} 50. e7+ {[%clk 0:00:04]}  Kf7 {[%clk 0:00:12]} 51. Ra8 {[%clk 0:00:04]}  Kxe7 {[%clk 0:00:11]} 52. Ra7+ {[%clk 0:00:04]}  Kd8 {[%clk 0:00:11]} 53. Ra8+ {[%clk 0:00:04]}  Kc7 {[%clk 0:00:11]} 54. Ra7+ {[%clk 0:00:04]}  Kb8 {[%clk 0:00:11]} 0-1


[Site "https://www.chess.com"]

[Event "Titled Tuesday Blitz May 10 Late 2022"]
[White "Suder, Jakub"]
[Black "Weber, Samuel"]
[WhiteFideId "1195310"]
[BlackFideId "12924008"]
[WhiteElo "2058"]
[BlackElo "2215"]
[Result "1-0"]
[Round "03"]
[TimeControl "180+1"]
[Date "2022.05.11"]
[WhiteClock "0:01:43"]
[BlackClock "0:00:38"]

1. d4 {[%clk 0:03:00]}  Nf6 {[%clk 0:02:59]} 2. c4 {[%clk 0:03:01]}  e6 {[%clk 0:02:59]} 3. Nc3 {[%clk 0:03:00]}  c5 {[%clk 0:02:58]} 4. d5 {[%clk 0:03:00]}  exd5 {[%clk 0:02:58]} 5. cxd5 {[%clk 0:03:01]}  d6 {[%clk 0:02:59]} 6. e4 {[%clk 0:03:02]}  g6 {[%clk 0:02:59]} 7. f4 {[%clk 0:03:02]}  Bg7 {[%clk 0:02:59]} 8. Bb5+ {[%clk 0:03:03]}  Nfd7 {[%clk 0:03:00]} 9. a4 {[%clk 0:03:03]}  Na6 {[%clk 0:02:59]} 10. Nf3 {[%clk 0:03:03]}  Nc7 {[%clk 0:02:59]} 11. O-O {[%clk 0:03:03]}  Nxb5 {[%clk 0:02:59]} 12. axb5 {[%clk 0:03:02]}  O-O {[%clk 0:02:58]} 13. Be3 {[%clk 0:03:02]}  Re8 {[%clk 0:02:58]} 14. Bf2 {[%clk 0:03:02]}  Nf6 {[%clk 0:02:52]} 15. Bh4 {[%clk 0:02:54]}  Qb6 {[%clk 0:02:49]} 16. Kh1 {[%clk 0:02:53]}  Nxe4 {[%clk 0:02:47]} 17. Re1 {[%clk 0:02:47]}  Bf5 {[%clk 0:02:44]} 18. Qb3 {[%clk 0:02:37]}  Bf6 {[%clk 0:02:28]} 19. Rxe4 {[%clk 0:02:29]}  Bxh4 {[%clk 0:01:51]} 20. Rxe8+ {[%clk 0:02:28]}  Rxe8 {[%clk 0:01:52]} 21. Nxh4 {[%clk 0:02:28]}  c4 {[%clk 0:01:53]} 22. Qd1 {[%clk 0:02:15]}  Bd3 {[%clk 0:01:47]} 23. Qg1 {[%clk 0:02:11]}  Qd8 {[%clk 0:01:44]} 24. Nf3 {[%clk 0:02:11]}  Qf6 {[%clk 0:01:44]} 25. Qd4 {[%clk 0:02:02]}  Qf5 {[%clk 0:01:36]} 26. h3 {[%clk 0:01:59]}  h6 {[%clk 0:01:19]} 27. Rxa7 {[%clk 0:01:57]}  g5 {[%clk 0:01:19]} 28. fxg5 {[%clk 0:01:53]}  hxg5 {[%clk 0:01:20]} 29. Qg4 {[%clk 0:01:51]}  Qxg4 {[%clk 0:00:56]} 30. hxg4 {[%clk 0:01:52]}  Be2 {[%clk 0:00:56]} 31. Rxb7 {[%clk 0:01:49]}  Re3 {[%clk 0:00:47]} 32. Rc7 {[%clk 0:01:44]}  Bxf3 {[%clk 0:00:37]} 33. gxf3 {[%clk 0:01:43]}  Rxf3 {[%clk 0:00:38]} 34. b6 {[%clk 0:01:43]} 1-0


[Site "https://www.chess.com"]